fUSD/lending_fUSD_20260404
["ID","MTS","AMOUNT","RATE_DAILY","PERIOD"]
[419700792,1775315448245,-2599.0,0.000159,5]
[419700793,1775315448256,-2000.0,0.00015901,2]
[419700794,1775315448267,-1000.0,0.00015904,2]
[419700795,1775315448277,-1000.0,0.00015904,2]
[419700796,1775315448288,-1000.0,0.00015904,2]
[419700797,1775315448298,-728.376,0.00015904,2]
[419700798,1775315448309,-1000.0,0.00015906,2]
[419700799,1775315448318,-150.0,0.00015911,2]
[419700800,1775315448329,-150.0,0.00015913,2]
[419700801,1775315448339,-150.0,0.00015915,2]
[419700802,1775315448349,-1000.0,0.00015915,2]
[419700803,1775315448359,-150.0,0.00015917,2]
[419700804,1775315448369,-150.0,0.00015917,2]
[419700805,1775315448379,-150.0,0.00015924,2]
[419700806,1775315448389,-150.0,0.00015926,2]
[419700807,1775315448399,-150.0,0.00015926,2]
[419700808,1775315448409,-150.0,0.00015927,2]
[419700809,1775315448418,-150.0,0.00015936,2]
[419700810,1775315448428,-150.0,0.00015936,2]
[419700811,1775315448438,-150.0,0.00015941,2]
[419700812,1775315448448,-150.0,0.00015942,2]
[419700813,1775315448458,-150.0,0.00015945,2]
[419700814,1775315448468,-150.0,0.00015945,2]
[419700815,1775315448478,-150.0,0.00015957,2]
[419700816,1775315448489,-5032.90549885,0.0001596,2]
[419700817,1775315448498,-150.0,0.00015962,2]
[419700818,1775315448509,-150.0,0.00015963,2]
[419700819,1775315448518,-150.0,0.00015971,2]
[419700820,1775315448528,-150.0,0.00015972,2]
[419700821,1775315448537,-150.0,0.00015972,2]
[419700822,1775315448547,-597.01949969,0.00015973,2]
[419700823,1775315448557,-150.0,0.00015979,2]
[419700824,1775315448567,-150.0,0.00015983,2]
[419700825,1775315448576,-604174.6415921,0.00015985,2]
[419700826,1775315448587,-2308.5746154,0.00015985,2]
[419700827,1775315448596,-157323.7763406,0.00015985,2]
[419700828,1775315448606,-916.57825,0.00015985,2]
[419700829,1775315448615,-916.57825,0.00015985,2]
[419700830,1775315448625,-916.57825,0.00015985,2]
[419700831,1775315448636,-1144.995082,0.00015985,2]
[419700832,1775315448647,-916.57825,0.00015985,2]
[419700833,1775315448656,-1144.995082,0.00015985,2]
[419700834,1775315448666,-1144.995082,0.00015985,2]
[419700835,1775315448676,-1144.995082,0.00015985,2]
[419700836,1775315448686,-159.266849,0.00015985,2]
[419700837,1775315448695,-159.266849,0.00015985,2]
[419700838,1775315448704,-159.266849,0.00015985,2]
[419700839,1775315448714,-159.266849,0.00015985,2]
[419700840,1775315448724,-8488.0019286,0.00015985,2]
[419700841,1775315448734,-361.560894,0.00015985,2]
[419700842,1775315448744,-361.560894,0.00015985,2]
[419700843,1775315448753,-361.560894,0.00015985,2]
[419700844,1775315448763,-361.560894,0.00015985,2]
[419700845,1775315448774,-797.949337,0.00015985,2]
[419700846,1775315448783,-797.949337,0.00015985,2]
[419700847,1775315448793,-547.256432,0.00015985,2]
[419700848,1775315448803,-547.256432,0.00015985,2]
[419700849,1775315448813,-797.949337,0.00015985,2]
[419700850,1775315448823,-797.949337,0.00015985,2]
[419700851,1775315448832,-547.256432,0.00015985,2]
[419700852,1775315448842,-547.256432,0.00015985,2]
[419700853,1775315448852,-181.09344401,0.0001599,2]
[419700854,1775315448862,-245.407609,0.00015992,2]
[419700855,1775315448873,-150.0,0.00016,2]
[419700856,1775315448883,-150.0,0.00016,2]
[419700857,1775315448892,-150.0,0.00016,2]
[419700858,1775315448903,-150.0,0.00016,2]
[419700859,1775315448913,-153.19744014,0.00016,2]
[419700860,1775315448922,-256.52934676,0.00016,2]
[419700861,1775315448932,-234.30356262,0.00016,2]
[419700862,1775315448942,-153.9648714,0.00016,2]
[419700863,1775315448952,-287.70807985,0.00016,2]
[419700864,1775315448961,-187.32,0.00016,2]
[419700865,1775315448972,-150.0,0.00016,2]
[419700866,1775315448982,-158.80277884,0.00016,2]
[419700867,1775315448992,-2885076.58710414,0.00016,2]
[419700868,1775315450044,-335.90610531,0.00013097,2]
[419700869,1775315450057,-1529.69049087,0.00013097,2]
[419700870,1775315450067,-53.72277831,0.00013097,2]
[419700871,1775315451288,-431.885,0.00013097,2]
[419700872,1775315451300,-1379.98881787,0.00013097,2]
[419700873,1775315451311,-1865.59659618,0.00013097,2]
[419700874,1775315451322,-1865.59659618,0.00013097,2]
[419700875,1775315451333,-1865.59659618,0.00013097,2]
[419700876,1775315451343,-1865.59659618,0.00013097,2]
[419700877,1775315451353,-1865.59659618,0.00013097,2]
[419700878,1775315451365,-1865.59659618,0.00013097,2]
[419700879,1775315451376,-1865.59659618,0.00013097,2]
[419700880,1775315451387,-1865.59659618,0.00013097,2]
[419700881,1775315451397,-1865.59659618,0.00013097,2]
[419700882,1775315451407,-1865.59659618,0.00013097,2]
[419700883,1775315451418,-1865.59659618,0.00013097,2]
[419700884,1775315451428,-1865.59659618,0.00013097,2]
[419700885,1775315451438,-1865.59659618,0.00013097,2]
[419700886,1775315451448,-1865.59659618,0.00013097,2]
[419700887,1775315451458,-1865.59659618,0.00013097,2]
[419700888,1775315451469,-1865.59659618,0.00013097,2]
[419700889,1775315451479,-1865.59659618,0.00013097,2]
[419700890,1775315451490,-1865.59659618,0.00013097,2]
[419700891,1775315451500,-1865.59659618,0.00013097,2]
[419700892,1775315451510,-1865.59659618,0.00013097,2]
[419700893,1775315451521,-1865.59659618,0.00013097,2]
[419700894,1775315451531,-1865.59659618,0.00013097,2]
[419700895,1775315451541,-1865.59659618,0.00013097,2]
[419700896,1775315451552,-1865.59659618,0.00013097,2]
[419700897,1775315451562,-1865.59659618,0.00013097,2]
[419700898,1775315451572,-1865.59659618,0.00013097,2]
[419700899,1775315451583,-1865.59659618,0.00013097,2]
[419700900,1775315451595,-1865.59659618,0.00013097,2]
[419700901,1775315451605,-1865.59659618,0.00013097,2]
[419700902,1775315451615,-1865.59659618,0.00013097,2]
[419700903,1775315451626,-1865.59659618,0.00013097,2]
[419700904,1775315451636,-1865.59659618,0.00013097,2]
[419700905,1775315451647,-1865.59659618,0.00013097,2]
[419700906,1775315451659,-1865.59659618,0.00013097,2]
[419700907,1775315451991,-1865.59659618,0.00013097,2]
[419700908,1775315452002,-1865.59659618,0.00013097,2]
[419700909,1775315452014,-1865.59659618,0.00013097,2]
[419700910,1775315452024,-1865.59659618,0.00013097,2]
[419700911,1775315452034,-1865.59659618,0.00013097,2]
[419700912,1775315452044,-1865.59659618,0.00013097,2]
[419700913,1775315452054,-1865.59659618,0.00013097,2]
[419700914,1775315452064,-1865.59659618,0.00013097,2]
[419700915,1775315452073,-1865.59659618,0.00013097,2]
[419700916,1775315452083,-1865.59659618,0.00013097,2]
[419700917,1775315452093,-1865.59659618,0.00013097,2]
[419700918,1775315452103,-1865.59659618,0.00013097,2]
[419700919,1775315452113,-1865.59659618,0.00013097,2]
[419700920,1775315452123,-1865.59659618,0.00013097,2]
[419700921,1775315452133,-500.0,0.00013198,2]
[419700922,1775315452143,-500.0,0.00013198,2]
[419700923,1775315452152,-3190.37789154,0.00015485,2]
[419700924,1775315452162,-133207.78784946,0.00016,2]
[419700925,1775315452175,-110894.9999985,0.00016,2]
[419700926,1775315452195,-476.11835284,0.00016,2]
[419700927,1775315452207,-11775.92221652,0.00016,2]
[419700928,1775315452240,-9988.02,0.00016,2]
[419700929,1775315452252,-336.53812,0.00016,2]
[419700930,1775315452264,-1123.71239335,0.00016,2]
[419700931,1775315452275,-1423.40184853,0.00016,2]
[419700932,1775315452402,-687.46430562,0.00016,2]
[419700933,1775315452446,-2505.80458643,0.00016,2]
[419700934,1775315452471,-96862.95887569,0.00016,2]
[419700935,1775315452561,-7765.24741519,0.00016,2]
[419700936,1775315452572,-680.6744972,0.00016,2]
[419700937,1775315452584,-1340.79708856,0.00016,2]
[419700938,1775315452621,-680.76275655,0.00016,2]
[419700939,1775315452633,-960.36619222,0.00016,2]
[419700940,1775315452644,-889.9516727,0.00016,2]
[419700941,1775315517928,166.0,0.00016101,120]
[419700942,1775315526399,166.0,0.000161,120]
[419700944,1775315554137,222.0,0.00016101,120]
[419700945,1775315561527,155.0,0.000161,120]
[419700946,1775315572975,155.0,0.00016101,120]
[419700947,1775315579306,222.0,0.00016101,120]
[419700951,1775316043173,-300.0,0.00010958,2]
[419700952,1775316043199,-500.0,0.00010959,2]
[419700953,1775316043224,-500.0,0.00010959,2]
[419700954,1775316043249,-500.0,0.00010959,2]
[419700955,1775316043275,-180.0,0.00010959,2]
[419700996,1775316632572,-313.19719561,0.00010959,2]
[419700998,1775316632583,-1513.2,0.00011507,2]
[419701000,1775316632593,-179.35,0.00012153,2]
[419701002,1775316632604,-211.02,0.00012466,2]
[419701004,1775316632615,-160.81,0.00012641,2]
[419701006,1775316632625,-461.35735938,0.00012673,2]
[419701008,1775316632635,-181.09344401,0.00012688,2]
[419701010,1775316632644,-932.79829809,0.00012697,2]
[419701012,1775316632654,-932.79829809,0.00012697,2]
[419701015,1775316632664,-932.79829809,0.00012697,2]
[419701017,1775316632674,-932.79829809,0.00012697,2]
[419701019,1775316632684,-932.79829809,0.00012697,2]
[419701021,1775316632693,-932.79829809,0.00012697,2]
[419701023,1775316632703,-932.79829809,0.00012697,2]
[419701025,1775316632712,-550.03391437,0.00012697,2]
[419701071,1775316638350,-382.76438372,0.00012697,2]
[419701072,1775316638359,-923.03885329,0.00012697,2]
[419701073,1775316638372,-9.7594448,0.00012697,2]
[419701074,1775316638382,-932.79829809,0.00012697,2]
[419701075,1775316638391,-31.77901794,0.00012697,2]
[419701076,1775316638403,-901.01928015,0.00012697,2]
[419701077,1775316638412,-932.79829809,0.00012697,2]
[419701078,1775316638422,-932.79829809,0.00012697,2]
[419701079,1775316638431,-295.24655938,0.00012697,2]
[419701080,1775316638445,-637.55173871,0.00012697,2]
[419701081,1775316638454,-932.79829809,0.00012697,2]
[419701082,1775316638463,-932.79829809,0.00012697,2]
[419701083,1775316638473,-932.79829809,0.00012697,2]
[419701084,1775316638482,-467.8909063,0.00012697,2]
[419701093,1775316640534,-464.90739179,0.00012697,2]
[419701094,1775316640543,-932.79829809,0.00012697,2]
[419701095,1775316640553,-932.79829809,0.00012697,2]
[419701096,1775316640562,-932.79829809,0.00012697,2]
[419701097,1775316640571,-932.79829809,0.00012697,2]
[419701098,1775316640580,-932.79829809,0.00012697,2]
[419701099,1775316640590,-932.79829809,0.00012697,2]
[419701100,1775316640599,-932.79829809,0.00012697,2]
[419701101,1775316640609,-932.79829809,0.00012697,2]
[419701102,1775316640618,-932.79829809,0.00012697,2]
[419701103,1775316640627,-932.79829809,0.00012697,2]
[419701104,1775316640636,-932.79829809,0.00012697,2]
[419701105,1775316640645,-932.79829809,0.00012697,2]
[419701106,1775316640655,-932.79829809,0.00012697,2]
[419701107,1775316640664,-932.79829809,0.00012697,2]
[419701108,1775316640672,-932.79829809,0.00012697,2]
[419701109,1775316640681,-932.79829809,0.00012697,2]
[419701110,1775316640690,-932.79829809,0.00012697,2]
[419701111,1775316640699,-932.79829809,0.00012697,2]
[419701112,1775316640708,-932.79829809,0.00012697,2]
[419701113,1775316640717,-932.79829809,0.00012697,2]
[419701114,1775316640726,-932.79829809,0.00012697,2]
[419701115,1775316640735,-932.79829809,0.00012697,2]
[419701116,1775316640745,-932.79829809,0.00012697,2]
[419701117,1775316640754,-932.79829809,0.00012697,2]
[419701118,1775316640763,-932.79829809,0.00012697,2]
[419701119,1775316640773,-932.79829809,0.00012697,2]
[419701120,1775316640782,-932.79829809,0.00012697,2]
[419701121,1775316640792,-932.79829809,0.00012697,2]
[419701122,1775316640801,-932.79829809,0.00012697,2]
[419701123,1775316640810,-932.79829809,0.00012697,2]
[419701124,1775316640819,-932.79829809,0.00012697,2]
[419701125,1775316640828,-932.79829809,0.00012697,2]
[419701126,1775316640837,-932.79829809,0.00012697,2]
[419701127,1775316640847,-932.79829809,0.00012697,2]
[419701128,1775316640856,-932.79829809,0.00012697,2]
[419701129,1775316640865,-932.79829809,0.00012697,2]
[419701130,1775316640874,-932.79829809,0.00012697,2]
[419701131,1775316640883,-932.79829809,0.00012697,2]
[419701132,1775316640892,-932.79829809,0.00012697,2]
[419701133,1775316640901,-1489047.355,0.00012698,2]
[419701134,1775316640910,-162.97,0.00012752,2]
[419701135,1775316640919,-415.31553778,0.00012797,2]
[419701136,1775316640928,-300.0,0.00012797,2]
[419701137,1775316640937,-150.0,0.00012797,2]
[419701138,1775316640947,-1600.0,0.00012798,2]
[419701139,1775316640956,-70034.6068,0.00012798,2]
[419701140,1775316640965,-4149.2519,0.00012798,2]
[419701141,1775316640974,-8154.22157135,0.000128,2]
[419701142,1775316640984,-2392.78341869,0.000128,2]
[419701143,1775316640992,-282.04099016,0.000128,2]
[419701144,1775316641002,-418.62752304,0.000128,2]
[419701145,1775316641011,-179.35,0.00012828,2]
[419701146,1775316641020,-218.30362481,0.00012873,2]
[419701147,1775316641029,-324.0,0.00012877,2]
[419701148,1775316641039,-503.9335937,0.00012898,2]
[419701149,1775316641048,-167.33092782,0.00012898,2]
[419701150,1775316641057,-500.0,0.00012898,2]
[419701151,1775316641067,-500.0,0.00012898,2]
[419701152,1775316641076,-380.41590675,0.00012898,2]
[419701153,1775316641086,-500.0,0.00012898,2]
[419701154,1775316641095,-500.0,0.00012898,2]
[419701155,1775316641104,-500.0,0.00012898,2]
[419701156,1775316641113,-500.0,0.00012898,2]
[419701157,1775316641122,-500.0,0.00012898,2]
[419701158,1775316641131,-500.0,0.00012898,2]
[419701159,1775316641141,-500.0,0.00012898,2]
[419701160,1775316641150,-585.82527559,0.00012898,2]
[419701161,1775316641159,-500.0,0.00012898,2]
[419701162,1775316641168,-500.0,0.00012898,2]
[419701163,1775316641177,-500.0,0.00012898,2]
[419701164,1775316641186,-500.0,0.00012898,2]
[419701165,1775316641195,-500.0,0.00012898,2]
[419701166,1775316641204,-307.82734361,0.00012898,2]
[419701167,1775316641213,-500.0,0.00012898,2]
[419701168,1775316641223,-500.0,0.00012898,2]
[419701169,1775316641233,-500.0,0.00012898,2]
[419701170,1775316641242,-264.19279217,0.00012898,2]
[419701171,1775316641251,-184.93495451,0.00012898,2]
[419701172,1775316641260,-4384.253,0.00012898,2]
[419701173,1775316641270,-224.025,0.00012898,2]
[419701174,1775316641279,-2500000.0,0.00012899,2]
[419701175,1775316641288,-156.0,0.000129,2]
[419701176,1775316641297,-184.77,0.00012934,2]
[419701177,1775316641307,-521.0,0.00013111,2]
[419701178,1775316641317,-8154.22157126,0.00013144,2]
[419701179,1775316641327,-2392.78341865,0.00013243,2]
[419701180,1775316641336,-198.37,0.00013272,2]
[419701181,1775316641346,-3240.0,0.00013425,2]
[419701182,1775316641354,-8154.22157126,0.00013489,2]
[419701183,1775316641364,-179.35,0.00013503,2]
[419701184,1775316641373,-2392.78341865,0.00013686,2]
[419701185,1775316641382,-500.0,0.00013698,2]
[419701186,1775316641392,-500.0,0.00013698,2]
[419701187,1775316641402,-500.0,0.00013698,2]
[419701188,1775316641411,-159.96636092,0.00013698,2]
[419701189,1775316641420,-500.0,0.00013698,2]
[419701190,1775316641429,-500.0,0.00013698,2]
[419701191,1775316641439,-500.0,0.00013698,2]
[419701192,1775316641448,-500.0,0.00013698,2]
[419701193,1775316641458,-500.0,0.00013698,2]
[419701194,1775316641467,-220.83,0.00013698,2]
[419701195,1775316641477,-500.0,0.00013698,2]
[419701196,1775316641486,-500.0,0.00013698,2]
[419701197,1775316641495,-500.0,0.00013698,2]
[419701198,1775316641505,-500.0,0.00013698,2]
[419701199,1775316641514,-500.0,0.00013698,2]
[419701200,1775316641523,-500.0,0.00013698,2]
[419701201,1775316641532,-494.3459031,0.00013698,2]
[419701202,1775316641542,-500.0,0.00013698,2]
[419701203,1775316641552,-500.0,0.00013698,2]
[419701204,1775316641561,-500.0,0.00013698,2]
[419701205,1775316641571,-500.0,0.00013698,2]
[419701206,1775316641581,-500.0,0.00013698,2]
[419701207,1775316641590,-500.0,0.00013698,2]
[419701208,1775316641599,-500.0,0.00013698,2]
[419701209,1775316641608,-500.0,0.00013698,2]
[419701210,1775316641618,-178.2512856,0.00013698,2]
[419701211,1775316641628,-150.0,0.00013699,2]
[419701212,1775316641637,-150.0,0.00013699,2]
[419701213,1775316641647,-150.0,0.00013699,2]
[419701214,1775316641656,-561.18350506,0.00013699,2]
[419701215,1775316641665,-29684.17,0.00013699,2]
[419701216,1775316641675,-178.7,0.00013699,2]
[419701217,1775316641684,-500.0,0.00013699,2]
[419701218,1775316641693,-501.18445721,0.00013699,2]
[419701219,1775316641702,-597.01949969,0.000137,2]
[419701220,1775316641711,-500.0,0.000137,2]
[419701221,1775316641721,-513.6791618,0.000137,2]
[419701222,1775316641730,-500.0,0.000137,2]
[419701223,1775316641740,-500.0,0.000137,2]
[419701224,1775316641750,-183.74490038,0.000137,2]
[419701225,1775316641759,-500.96208165,0.000137,2]
[419701226,1775316641768,-500.0,0.000137,2]
[419701227,1775316641778,-500.0,0.000137,2]
[419701228,1775316641788,-500.45908735,0.000137,2]
[419701229,1775316641798,-500.0,0.000137,2]
[419701230,1775316641807,-502.40500922,0.000137,2]
[419701231,1775316641816,-500.0,0.000137,2]
[419701232,1775316641827,-501.88837508,0.000137,2]
[419701233,1775316641836,-500.0,0.000138,2]
[419701234,1775316641846,-500.0,0.00013814,2]
[419701235,1775316641856,-500.0,0.00013814,2]
[419701236,1775316641865,-500.0,0.00013814,2]
[419701238,1775316641875,-500.0,0.00013814,2]
[419701239,1775316641885,-418.82438739,0.00013814,2]
[419701240,1775316641894,-503.37341793,0.00013814,2]
[419701241,1775316641903,-8154.22157126,0.00013833,2]
[419701242,1775316641912,-255.0,0.00013897,2]
[419701243,1775316641922,-255.0,0.00013972,2]
[419701244,1775316641931,-220.83,0.00013972,2]
[419701245,1775316641940,-150.0,0.00013973,2]
[419701246,1775316641949,-150.0,0.00013973,2]
[419701247,1775316641959,-473.51720145,0.00014006,2]
[419701248,1775316641969,-500.0,0.00014029,2]
[419701249,1775316641978,-420.0,0.00014037,2]
[419701250,1775316641987,-500.0,0.00014037,2]
[419701251,1775316641997,-503.75625281,0.00014037,2]
[419701252,1775316642006,-500.0,0.00014037,2]
[419701253,1775316642016,-500.0,0.00014037,2]
[419701254,1775316642025,-178.83121777,0.00014037,2]
[419701255,1775316642035,-500.0,0.00014037,2]
[419701256,1775316642044,-160.81,0.00014063,2]
[419701257,1775316642053,-700.0,0.00014082,2]
[419701258,1775316642062,-2392.78341865,0.00014129,2]
[419701259,1775316642072,-8154.22157126,0.00014178,2]
[419701260,1775316642081,-179.35,0.00014178,2]
[419701261,1775316642091,-173.592731,0.00014232,2]
[419701262,1775316642101,-359.611928,0.00014232,2]
[419701263,1775316642110,-604.902309,0.00014232,2]
[419701264,1775316642120,-222.0,0.00014246,2]
[419701265,1775316642129,-220.83,0.00014246,2]
[419701266,1775316642138,-150.0,0.00014247,2]
[419701267,1775316642148,-1000.0,0.00014248,2]
[419701268,1775316642158,-501.18780645,0.00014248,2]
[419701269,1775316642168,-724.3005031,0.00014248,2]
[419701270,1775316642178,-829.77078849,0.00014248,2]
[419701271,1775316642187,-500.0,0.00014248,2]
[419701272,1775316642196,-184.77,0.00014258,2]
[419701273,1775316642206,-390.438956,0.00014328,2]
[419701274,1775316642215,-260.389097,0.00014336,2]
[419701275,1775316642225,-282.04099016,0.0001435,2]
[419701276,1775316642234,-418.62752302,0.0001435,2]
[419701277,1775316642244,-1100.0,0.00014356,2]
[419701278,1775316642254,-155.0,0.00014361,2]
[419701279,1775316642264,-1600.0,0.00014397,2]
[419701280,1775316642275,-150.0,0.000144,2]
[419701281,1775316642284,-150.0,0.000144,2]
[419701282,1775316642294,-150.0,0.000144,2]
[419701283,1775316642304,-150.23775673,0.000144,2]
[419701284,1775316642313,-150.33770113,0.000144,2]
[419701285,1775316642323,-150.0,0.000144,2]
[419701286,1775316642333,-150.0,0.000144,2]
[419701287,1775316642343,-150.0,0.000144,2]
[419701288,1775316642352,-150.0,0.000144,2]
[419701289,1775316642363,-150.0,0.000144,2]
[419701290,1775316642373,-150.0,0.000144,2]
[419701291,1775316642383,-150.0,0.000144,2]
[419701292,1775316642393,-150.0,0.000144,2]
[419701293,1775316642402,-150.0,0.000144,2]
[419701294,1775316642412,-150.0,0.00014421,2]
[419701295,1775316642422,-150.0,0.00014428,2]
[419701296,1775316642432,-150.0,0.00014428,2]
[419701297,1775316642441,-150.0,0.00014429,2]
[419701298,1775316642451,-150.0,0.00014437,2]
[419701299,1775316642460,-150.0,0.00014438,2]
[419701300,1775316642470,-150.0,0.00014443,2]
[419701301,1775316642479,-150.0,0.00014455,2]
[419701302,1775316642489,-150.0,0.00014455,2]
[419701303,1775316642498,-150.0,0.00014458,2]
[419701304,1775316642508,-150.0,0.00014464,2]
[419701305,1775316642517,-150.0,0.00014464,2]
[419701306,1775316642527,-150.0,0.00014473,2]
[419701307,1775316642536,-150.0,0.00014474,2]
[419701308,1775316642546,-150.0,0.00014476,2]
[419701309,1775316642556,-150.0,0.00014483,2]
[419701310,1775316642566,-150.0,0.00014483,2]
[419701311,1775316642575,-150.0,0.00014485,2]
[419701312,1775316642585,-150.0,0.00014487,2]
[419701313,1775316642595,-150.0,0.00014507,2]
[419701314,1775316642606,-150.0,0.0001451,2]
[419701315,1775316642615,-150.0,0.0001451,2]
[419701316,1775316642625,-150.0,0.00014512,2]
[419701317,1775316642634,-150.0,0.00014514,2]
[419701318,1775316642644,-150.0,0.00014514,2]
[419701319,1775316642653,-150.0,0.00014516,2]
[419701320,1775316642663,-220.83,0.0001452,2]
[419701321,1775316642672,-8154.22157126,0.00014522,2]
[419701322,1775316642682,-150.0,0.00014528,2]
[419701323,1775316642691,-150.0,0.00014528,2]
[419701324,1775316642701,-150.0,0.00014538,2]
[419701325,1775316642710,-150.0,0.00014538,2]
[419701326,1775316642720,-150.0,0.00014545,2]
[419701327,1775316642730,-150.0,0.00014545,2]
[419701328,1775316642740,-150.0,0.00014549,2]
[419701329,1775316642750,-150.0,0.00014549,2]
[419701330,1775316642759,-150.0,0.00014552,2]
[419701331,1775316642769,-150.0,0.00014566,2]
[419701332,1775316642779,-150.0,0.00014566,2]
[419701333,1775316642789,-150.0,0.00014571,2]
[419701334,1775316642799,-2392.78341865,0.00014571,2]
[419701335,1775316642809,-150.0,0.00014575,2]
[419701336,1775316642818,-1004.16690782,0.00014585,2]
[419701337,1775316642828,-150.0,0.00014586,2]
[419701338,1775316642838,-150.0,0.0001459,2]
[419701339,1775316642849,-150.0,0.00014592,2]
[419701340,1775316642859,-150.0,0.00014592,2]
[419701341,1775316642868,-150.0,0.00014593,2]
[419701342,1775316642879,-150.0,0.00014593,2]
[419701343,1775316642888,-150.0,0.00014604,2]
[419701344,1775316642899,-150.0,0.00014613,2]
[419701345,1775316642910,-150.0,0.00014618,2]
[419701346,1775316642920,-150.0,0.00014621,2]
[419701348,1775316642930,-150.0,0.00014621,2]
[419701349,1775316642940,-150.0,0.00014623,2]
[419701350,1775316642950,-150.0,0.00014629,2]
[419701351,1775316642961,-150.0,0.00014629,2]
[419701352,1775316642970,-150.0,0.00014629,2]
[419701353,1775316642981,-150.0,0.00014633,2]
[419701354,1775316642991,-150.0,0.00014635,2]
[419701355,1775316643001,-150.0,0.00014648,2]
[419701356,1775316643011,-150.0,0.00014648,2]
[419701357,1775316643022,-150.0,0.00014656,2]
[419701358,1775316643033,-150.0,0.00014656,2]
[419701359,1775316643043,-150.0,0.0001466,2]
[419701360,1775316643054,-150.0,0.00014662,2]
[419701362,1775316643064,-150.0,0.00014667,2]
[419701364,1775316643075,-150.0,0.00014676,2]
[419701365,1775316643086,-150.0,0.00014676,2]
[419701366,1775316643097,-150.0,0.00014677,2]
[419701367,1775316643108,-150.0,0.00014691,2]
[419701368,1775316643118,-150.0,0.00014691,2]
[419701369,1775316643128,-150.0,0.00014698,2]
[419701370,1775316643138,-150.0,0.00014699,2]
[419701371,1775316643149,-156.0,0.000147,2]
[419701372,1775316643160,-150.0,0.00014703,2]
[419701373,1775316643171,-150.0,0.00014703,2]
[419701374,1775316643182,-150.0,0.00014705,2]
[419701375,1775316643193,-150.0,0.0001472,2]
[419701377,1775316643204,-150.0,0.0001472,2]
[419701378,1775316643215,-150.0,0.0001472,2]
[419701379,1775316643225,-150.0,0.00014731,2]
[419701380,1775316643236,-150.0,0.00014731,2]
[419701381,1775316643246,-150.0,0.00014735,2]
[419701382,1775316643257,-150.0,0.00014741,2]
[419701383,1775316643267,-150.0,0.00014743,2]
[419701384,1775316643278,-150.0,0.00014743,2]
[419701385,1775316643293,-150.0,0.00014749,2]
[419701386,1775316643304,-150.0,0.00014759,2]
[419701387,1775316643314,-150.0,0.00014759,2]
[419701388,1775316643324,-150.0,0.00014763,2]
[419701389,1775316643335,-150.0,0.00014764,2]
[419701390,1775316643345,-150.0,0.00014772,2]
[419701391,1775316643355,-162.97,0.00014778,2]
[419701392,1775316643365,-150.0,0.00014778,2]
[419701393,1775316643376,-150.0,0.00014781,2]
[419701394,1775316643387,-150.0,0.00014784,2]
[419701395,1775316643397,-150.0,0.00014784,2]
[419701396,1775316643407,-150.0,0.00014786,2]
[419701397,1775316643418,-150.0,0.00014786,2]
[419701398,1775316643428,-220.84,0.00014794,2]
[419701399,1775316643439,-744.6131476,0.00014796,2]
[419701400,1775316643449,-200.0,0.000148,2]
[419701401,1775316643460,-150.0,0.00014805,2]
[419701402,1775316643470,-150.0,0.00014807,2]
[419701403,1775316643481,-150.0,0.00014809,2]
[419701404,1775316643491,-150.0,0.00014814,2]
[419701405,1775316643503,-150.0,0.00014814,2]
[419701406,1775316643513,-150.0,0.00014819,2]
[419701407,1775316643524,-150.0,0.00014827,2]
[419701408,1775316643534,-150.0,0.00014836,2]